fUSD/lending_fUSD_20260401
["ID","MTS","AMOUNT","RATE_DAILY","PERIOD"]
[419193427,1775014262228,-244.3815,0.00034615,7]
[419193428,1775014262237,-592.636849,0.00034615,7]
[419193429,1775014262247,-1663.408312,0.00034615,7]
[419193430,1775014262257,-244.3815,0.00034615,7]
[419193431,1775014262266,-592.636849,0.00034615,7]
[419193432,1775014262276,-283.450563,0.00034615,7]
[419193433,1775014262286,-151.0,0.00034615,7]
[419193434,1775014262297,-283.450563,0.00034615,7]
[419193435,1775014262307,-283.450563,0.00034615,7]
[419193436,1775014262317,-838.01367,0.00034615,7]
[419193437,1775014262326,-838.01367,0.00034615,7]
[419193438,1775014262336,-320.700605,0.00034615,7]
[419193439,1775014262346,-151.0,0.00034615,7]
[419193440,1775014262355,-151.0,0.00034615,7]
[419193441,1775014262365,-838.01367,0.00034615,7]
[419193442,1775014262375,-151.0,0.00034615,7]
[419193443,1775014262384,-320.700605,0.00034615,7]
[419193444,1775014262394,-838.01367,0.00034615,7]
[419193445,1775014262404,-151.0,0.00034615,7]
[419193446,1775014262414,-320.700605,0.00034615,7]
[419193447,1775014262423,-151.0,0.00034615,7]
[419193448,1775014262433,-151.0,0.00034615,7]
[419193449,1775014262443,-320.700605,0.00034615,7]
[419193450,1775014262453,-151.0,0.00034615,7]
[419193451,1775014262462,-151.0,0.00034615,7]
[419193452,1775014262472,-151.0,0.00034615,7]
[419193453,1775014262481,-151.0,0.00034615,7]
[419193454,1775014262491,-151.0,0.00034615,7]
[419193455,1775014262501,-151.0,0.00034615,7]
[419193456,1775014262510,-151.0,0.00034615,7]
[419193457,1775014262519,-4126.945995,0.00034615,7]
[419193458,1775014262529,-4126.945995,0.00034615,7]
[419193459,1775014262539,-4126.945995,0.00034615,7]
[419193460,1775014262549,-4126.945995,0.00034615,7]
[419193461,1775014262560,-151.0,0.00034615,7]
[419193462,1775014262570,-151.0,0.00034615,7]
[419193463,1775014262580,-151.0,0.00034615,7]
[419193464,1775014262589,-151.0,0.00034615,7]
[419193465,1775014262598,-1014.36,0.00034615,120]
[419193466,1775014262608,-367.26,0.00034626,120]
[419193467,1775014262618,-825.0,0.0003463,90]
[419193468,1775014262628,-578.20924308,0.00034643,21]
[419193469,1775014262637,-500.0,0.00034643,21]
[419193470,1775014262647,-500.0,0.00034643,21]
[419193471,1775014262658,-617.58749353,0.00034643,21]
[419193472,1775014262668,-200.0,0.00034643,21]
[419193473,1775014262678,-7965.41053268,0.00034643,21]
[419193474,1775014262689,-500.0,0.00034643,21]
[419193475,1775014262699,-500.0,0.00034643,21]
[419193476,1775014262710,-1191.11104075,0.00034643,21]
[419193477,1775014262719,-8260.13072239,0.00034643,21]
[419193478,1775014262730,-200.0,0.00034643,21]
[419193479,1775014262739,-638.31490744,0.00034643,21]
[419193480,1775014262749,-500.0,0.00034643,21]
[419193481,1775014262759,-500.0,0.00034643,21]
[419193482,1775014262769,-1235.18214925,0.00034643,21]
[419193483,1775014262779,-302.87532976,0.00034643,21]
[419193484,1775014262788,-8565.75555911,0.00034643,21]
[419193485,1775014262798,-500.0,0.00034643,21]
[419193486,1775014262808,-500.0,0.00034643,21]
[419193487,1775014262818,-1280.88388878,0.00034643,21]
[419193488,1775014262828,-8882.6885148,0.00034643,21]
[419193489,1775014262838,-500.0,0.00034643,21]
[419193490,1775014262849,-500.0,0.00034643,21]
[419193491,1775014262859,-1328.27659266,0.00034643,21]
[419193492,1775014262869,-151.0,0.00034643,21]
[419193493,1775014262879,-9211.34798985,0.00034643,21]
[419193494,1775014262888,-500.0,0.00034643,21]
[419193495,1775014262898,-500.0,0.00034643,21]
[419193496,1775014262909,-583.57611238,0.00034643,21]
[419193497,1775014262918,-151.0,0.00034643,21]
[419193498,1775014262928,-9552.16786547,0.00034643,21]
[419193499,1775014262940,-500.0,0.00034643,21]
[419193500,1775014262952,-500.0,0.00034643,21]
[419193501,1775014262961,-500.0,0.00034643,21]
[419193502,1775014262972,-151.0,0.00034643,21]
[419193503,1775014262983,-500.0,0.00034643,21]
[419193504,1775014262993,-500.0,0.00034643,21]
[419193505,1775014263003,-518.8745232,0.00034643,21]
[419193506,1775014263013,-151.0,0.00034643,21]
[419193507,1775014263023,-9905.5980765,0.00034643,21]
[419193508,1775014263473,-500.0,0.00034643,21]
[419193509,1775014263487,-500.0,0.00034643,21]
[419193510,1775014263496,-151.0,0.00034643,21]
[419193511,1775014263506,-10272.10520533,0.00034643,21]
[419193512,1775014263516,-500.0,0.00034643,21]
[419193513,1775014263525,-500.0,0.00034643,21]
[419193514,1775014263535,-174.61919141,0.00034643,21]
[419193515,1775014263544,-174.61919141,0.00034643,21]
[419193516,1775014263554,-295.29184605,0.00034643,21]
[419193517,1775014263563,-10652.17309792,0.00034643,21]
[419193518,1775014263573,-500.0,0.00034643,21]
[419193519,1775014263582,-181.08010149,0.00034643,21]
[419193520,1775014263592,-500.0,0.00034643,21]
[419193521,1775014263601,-181.08010149,0.00034643,21]
[419193522,1775014263610,-11046.30350255,0.00034643,21]
[419193523,1775014263620,-187.78006525,0.00034643,21]
[419193524,1775014263630,-500.0,0.00034643,21]
[419193525,1775014263639,-500.0,0.00034643,21]
[419193526,1775014263649,-187.78006525,0.00034643,21]
[419193527,1775014263658,-11455.01673214,0.00034643,21]
[419193528,1775014263668,-194.72792766,0.00034643,21]
[419193529,1775014263677,-500.0,0.00034643,21]
[419193530,1775014263687,-500.0,0.00034643,21]
[419193531,1775014263696,-500.0,0.00034643,21]
[419193532,1775014263705,-194.72792766,0.00034643,21]
[419193533,1775014263715,-11878.85235123,0.00034643,21]
[419193534,1775014263724,-500.0,0.00034643,21]
[419193535,1775014263734,-316.61588148,0.00034643,21]
[419193536,1775014263743,-500.0,0.00034643,21]
[419193537,1775014263753,-500.0,0.00034643,21]
[419193538,1775014263762,-201.93286099,0.00034643,21]
[419193539,1775014263772,-12318.36988823,0.00034643,21]
[419193540,1775014263782,-500.0,0.00034643,21]
[419193541,1775014263791,-500.0,0.00034643,21]
[419193542,1775014263801,-500.0,0.00034643,21]
[419193543,1775014263810,-291.91127152,0.00034643,21]
[419193544,1775014263819,-200.0,0.00034643,21]
[419193545,1775014263828,-12774.14957409,0.00034643,21]
[419193546,1775014263837,-500.0,0.00034643,21]
[419193547,1775014263847,-500.0,0.00034643,21]
[419193548,1775014263856,-500.0,0.00034643,21]
[419193549,1775014263866,-200.0,0.00034643,21]
[419193550,1775014263875,-3743.99701546,0.00034643,21]
[419193551,1775014263884,-500.0,0.00034643,21]
[419193552,1775014263894,-500.0,0.00034643,21]
[419193553,1775014263903,-500.0,0.00034643,21]
[419193554,1775014263912,-200.0,0.00034643,21]
[419193555,1775014263921,-500.0,0.00034643,21]
[419193556,1775014263930,-500.0,0.00034643,21]
[419193557,1775014263940,-500.0,0.00034643,21]
[419193558,1775014263949,-500.0,0.00034643,21]
[419193559,1775014263958,-500.0,0.00034643,21]
[419193560,1775014263968,-500.0,0.00034643,21]
[419193561,1775014263978,-500.0,0.00034643,21]
[419193562,1775014263987,-200.0,0.00034643,21]
[419193563,1775014263996,-200.0,0.00034643,21]
[419193564,1775014264005,-200.0,0.00034643,21]
[419193565,1775014264014,-500.0,0.00034643,21]
[419193566,1775014264024,-200.0,0.00034643,21]
[419193567,1775014264033,-500.0,0.00034643,21]
[419193568,1775014264042,-201.94818926,0.00034643,21]
[419193569,1775014264052,-200.0,0.00034643,21]
[419193570,1775014264061,-200.0,0.00034643,21]
[419193571,1775014264070,-200.0,0.00034643,21]
[419193572,1775014264079,-151.0,0.00034643,21]
[419193573,1775014264089,-200.0,0.00034643,21]
[419193574,1775014264098,-151.0,0.00034643,21]
[419193575,1775014264107,-160.65067359,0.00034643,21]
[419193576,1775014264116,-200.0,0.00034643,21]
[419193577,1775014264126,-151.0,0.00034643,21]
[419193578,1775014264135,-151.0,0.00034643,21]
[419193579,1775014264144,-200.0,0.00034643,21]
[419193580,1775014264153,-151.0,0.00034643,21]
[419193581,1775014264163,-151.67371875,0.00034643,21]
[419193582,1775014264173,-500.0,0.00034643,21]
[419193583,1775014264182,-201.94886624,0.00034643,21]
[419193584,1775014264191,-151.0,0.00034643,21]
[419193585,1775014264201,-500.0,0.00034643,21]
[419193586,1775014264210,-174.61919141,0.00034643,21]
[419193587,1775014264219,-151.0,0.00034643,21]
[419193588,1775014264229,-500.0,0.00034643,21]
[419193589,1775014264238,-210.33732381,0.00034643,21]
[419193590,1775014264248,-151.0,0.00034643,21]
[419193591,1775014264257,-500.0,0.00034643,21]
[419193592,1775014264266,-500.0,0.00034643,21]
[419193593,1775014264275,-500.0,0.00034643,21]
[419193594,1775014264285,-151.0,0.00034643,21]
[419193595,1775014264295,-500.0,0.00034643,21]
[419193596,1775014264304,-500.0,0.00034643,21]
[419193597,1775014264314,-151.0,0.00034643,21]
[419193598,1775014264326,-152.15099447,0.00034643,21]
[419193599,1775014264335,-578.20924308,0.00034643,21]
[419193600,1775014264345,-500.0,0.00034643,21]
[419193601,1775014264354,-151.0,0.00034643,21]
[419193602,1775014264365,-599.60298507,0.00034643,21]
[419193603,1775014264376,-500.0,0.00034643,21]
[419193604,1775014264385,-151.0,0.00034643,21]
[419193605,1775014264394,-500.0,0.00034643,21]
[419193606,1775014264404,-174.61919141,0.00034643,21]
[419193607,1775014264414,-621.78829552,0.00034643,21]
[419193608,1775014264423,-500.0,0.00034643,21]
[419193609,1775014264434,-151.0,0.00034643,21]
[419193610,1775014264443,-181.08010149,0.00034643,21]
[419193611,1775014264453,-562.18083163,0.00034643,21]
[419193612,1775014264463,-644.79446246,0.00034643,21]
[419193613,1775014264473,-500.0,0.00034643,21]
[419193614,1775014264485,-151.0,0.00034643,21]
[419193615,1775014264495,-187.78006525,0.00034643,21]
[419193616,1775014264506,-269.92250357,0.00034643,21]
[419193617,1775014264515,-151.0,0.00034643,21]
[419193618,1775014264526,-500.0,0.00034643,21]
[419193619,1775014264536,-151.0,0.00034643,21]
[419193620,1775014264546,-151.0,0.00034643,21]
[419193621,1775014264555,-194.72792766,0.00034643,21]
[419193622,1775014264564,-500.0,0.00034643,21]
[419193623,1775014264574,-151.0,0.00034643,21]
[419193624,1775014264583,-201.93286099,0.00034643,21]
[419193625,1775014264593,-500.0,0.00034643,21]
[419193626,1775014264604,-151.0,0.00034643,21]
[419193627,1775014264614,-209.40437684,0.00034643,21]
[419193628,1775014264623,-151.0,0.00034643,21]
[419193629,1775014264634,-500.0,0.00034643,21]
[419193630,1775014264644,-151.0,0.00034643,21]
[419193631,1775014264655,-151.0,0.00034643,21]
[419193632,1775014264665,-217.15233878,0.00034643,21]
[419193633,1775014264677,-225.18697532,0.00034643,21]
[419193634,1775014264689,-500.0,0.00034643,21]
[419193635,1775014264701,-151.0,0.00034643,21]
[419193636,1775014264711,-184.19167431,0.00034643,21]
[419193637,1775014264720,-500.0,0.00034643,21]
[419193638,1775014264730,-151.0,0.00034643,21]
[419193639,1775014264739,-500.0,0.00034643,21]
[419193640,1775014264747,-151.0,0.00034643,21]
[419193641,1775014264756,-279.9045709,0.00034643,21]
[419193642,1775014264765,-151.0,0.00034643,21]
[419193643,1775014264774,-500.0,0.00034643,21]
[419193644,1775014264784,-290.26104003,0.00034643,21]
[419193645,1775014264794,-151.0,0.00034643,21]
[419193646,1775014264804,-500.0,0.00034643,21]
[419193647,1775014264813,-294.68301089,0.00034643,21]
[419193648,1775014264823,-510.80849174,0.00034643,21]
[419193649,1775014264832,-151.0,0.00034643,21]
[419193650,1775014264842,-151.0,0.00034643,21]
[419193651,1775014264852,-151.0,0.00034643,21]
[419193652,1775014264862,-151.0,0.00034643,21]
[419193653,1775014264871,-151.0,0.00034643,21]
[419193654,1775014264881,-151.0,0.00034643,21]
[419193655,1775014264891,-250.0,0.00034643,21]
[419193656,1775014264900,-250.0,0.00034643,21]
[419193657,1775014264910,-250.0,0.00034643,21]
[419193658,1775014264919,-250.0,0.00034643,21]
[419193659,1775014264928,-250.0,0.00034643,21]
[419193660,1775014264937,-250.0,0.00034643,21]
[419193661,1775014264947,-250.0,0.00034643,21]
[419193662,1775014264956,-250.0,0.00034643,21]
[419193663,1775014264965,-250.0,0.00034643,21]
[419193664,1775014264974,-250.0,0.00034643,21]
[419193665,1775014264984,-262.90206542,0.00034643,21]
[419193666,1775014264994,-250.0,0.00034643,21]
[419193667,1775014265004,-272.62944185,0.00034643,21]
[419193668,1775014265013,-250.0,0.00034643,21]
[419193669,1775014265022,-282.71673119,0.00034643,21]
[419193670,1775014265031,-250.0,0.00034643,21]
[419193671,1775014265040,-293.17725025,0.00034643,21]
[419193672,1775014265049,-250.0,0.00034643,21]
[419193673,1775014265058,-304.02480851,0.00034643,21]
[419193674,1775014265067,-250.0,0.00034643,21]
[419193675,1775014265076,-315.27372642,0.00034643,21]
[419193676,1775014265086,-250.0,0.00034643,21]
[419193677,1775014265095,-326.9388543,0.00034643,21]
[419193678,1775014265104,-339.03559191,0.00034643,21]
[419193679,1775014265114,-743.50770149,0.00034643,21]
[419193680,1775014265123,-771.01748645,0.00034643,21]
[419193681,1775014265132,-799.54513345,0.00034643,21]
[419193682,1775014265142,-829.12830338,0.00034643,21]
[419193683,1775014265151,-403.57140919,0.00034643,21]
[419193684,1775014265160,-500.0,0.00034643,21]
[419193685,1775014265170,-500.0,0.00034643,21]
[419193686,1775014265180,-500.0,0.00034643,21]
[419193687,1775014265191,-500.0,0.00034643,21]
[419193688,1775014265201,-500.0,0.00034643,21]
[419193689,1775014265210,-1000.0,0.0003467,2]
[419193690,1775014265220,-500.0,0.0003467,2]
[419193691,1775014265230,-719.3559477,0.00034672,37]
[419193692,1775014265239,-200.0,0.00034672,37]
[419193693,1775014265249,-500.0,0.00034672,37]
[419193694,1775014265258,-500.0,0.00034672,37]
[419193695,1775014265268,-520.0,0.00034672,37]
[419193696,1775014265278,-6888.0,0.00034672,37]
[419193697,1775014265287,-500.0,0.00034672,37]
[419193698,1775014265297,-200.0,0.00034672,37]
[419193699,1775014265306,-3000.0,0.00034672,37]
[419193700,1775014265316,-200.0,0.00034672,37]
[419193701,1775014265326,-1030.0,0.00034672,37]
[419193702,1775014265336,-200.0,0.00034672,37]
[419193703,1775014265346,-200.0,0.00034672,37]
[419193704,1775014265356,-200.0,0.00034672,37]
[419193705,1775014265365,-151.0,0.00034672,37]
[419193706,1775014265375,-200.0,0.00034672,37]
[419193707,1775014265384,-500.0,0.00034672,37]
[419193708,1775014265394,-200.0,0.00034672,37]
[419193709,1775014265404,-151.0,0.00034672,37]
[419193710,1775014265415,-151.0,0.00034672,37]
[419193711,1775014265424,-151.0,0.00034672,37]
[419193712,1775014265434,-500.0,0.00034672,37]
[419193713,1775014265444,-151.0,0.00034672,37]
[419193714,1775014265454,-151.0,0.00034672,37]
[419193715,1775014265464,-151.0,0.00034672,37]
[419193716,1775014265474,-151.0,0.00034672,37]
[419193717,1775014265484,-151.0,0.00034672,37]
[419193718,1775014265495,-151.0,0.00034672,37]
[419193719,1775014265505,-151.0,0.00034672,37]
[419193720,1775014265514,-151.0,0.00034672,37]
[419193721,1775014265524,-2000.0,0.00034672,37]
[419193722,1775014265533,-1639.26254045,0.00034672,37]
[419193723,1775014265543,-151.0,0.00034672,37]
[419193724,1775014265552,-200.0,0.00034672,37]
[419193725,1775014265561,-151.0,0.00034672,37]
[419193726,1775014265570,-151.0,0.00034672,37]
[419193727,1775014265579,-151.0,0.00034672,37]
[419193728,1775014265588,-151.0,0.00034672,37]
[419193729,1775014265598,-151.0,0.00034672,37]
[419193730,1775014265607,-151.0,0.00034672,37]
[419193731,1775014265617,-200.0,0.00034672,37]
[419193732,1775014265627,-151.0,0.00034672,37]
[419193733,1775014265636,-151.0,0.00034672,37]
[419193734,1775014265646,-226.46120389,0.00034672,37]
[419193735,1775014265655,-151.0,0.00034672,37]
[419193736,1775014265665,-220.0,0.00034672,37]
[419193737,1775014265674,-151.0,0.00034672,37]
[419193738,1775014265684,-151.0,0.00034672,37]
[419193739,1775014265693,-220.0,0.00034672,37]
[419193740,1775014265703,-160.0,0.00034672,37]
[419193741,1775014265712,-309.98111957,0.00034672,37]
[419193742,1775014265721,-151.0,0.00034672,37]
[419193743,1775014265730,-151.0,0.00034672,37]
[419193744,1775014265739,-151.0,0.00034672,37]
[419193745,1775014265750,-500.0,0.00034672,37]
[419193746,1775014265760,-500.0,0.00034672,37]
[419193747,1775014265770,-500.0,0.00034672,37]
[419193748,1775014265866,-500.0,0.00034672,37]
[419193749,1775014265878,-151.0,0.00034672,37]
[419193750,1775014265887,-151.0,0.00034672,37]
[419193751,1775014265897,-151.0,0.00034672,37]
[419193752,1775014265907,-251.0,0.00034672,37]
[419193753,1775014265918,-2486.0,0.00034672,37]
[419193754,1775014265931,-2486.0,0.00034672,37]
[419193755,1775014265942,-2486.0,0.00034672,37]
[419193756,1775014265953,-2486.0,0.00034672,37]
[419193757,1775014265963,-2486.0,0.00034672,37]
[419193758,1775014265975,-250.0,0.00034672,37]
[419193759,1775014265985,-170.0,0.00034672,37]
[419193760,1775014265995,-176.29,0.00034672,37]
[419193761,1775014266005,-182.81273,0.00034672,37]
[419193762,1775014266015,-189.57680101,0.00034672,37]
[419193763,1775014266024,-196.59114265,0.00034672,37]
[419193764,1775014266034,-203.86501493,0.00034672,37]
[419193765,1775014266044,-211.40802048,0.00034672,37]
[419193766,1775014266053,-219.23011724,0.00034672,37]
[419193767,1775014266062,-227.34163157,0.00034672,37]
[419193768,1775014266071,-235.75327194,0.00034672,37]
[419193769,1775014266080,-244.476143,0.00034672,37]
[419193770,1775014266090,-253.52176029,0.00034672,37]
[419193771,1775014266099,-620.0,0.00034672,37]
[419193772,1775014266108,-642.94,0.00034672,37]
[419193773,1775014266117,-666.72878,0.00034672,37]
[419193774,1775014266127,-691.39774486,0.00034672,37]
[419193775,1775014266136,-716.97946142,0.00034672,37]
[419193776,1775014266146,-500.0,0.00034672,37]
[419193777,1775014266155,-500.0,0.00034672,37]
[419193778,1775014266165,-500.0,0.00034672,37]
[419193779,1775014266174,-500.0,0.00034672,37]
[419193780,1775014266183,-500.0,0.00034672,37]
[419193781,1775014266193,-500.0,0.00034672,37]
[419193782,1775014266202,-500.0,0.00034672,37]
[419193783,1775014266211,-500.0,0.00034672,37]
[419193784,1775014266221,-500.0,0.00034672,37]
[419193785,1775014266231,-500.0,0.00034672,37]
[419193786,1775014266240,-500.0,0.00034672,37]
[419193787,1775014266249,-500.0,0.00034672,37]
[419193788,1775014266259,-500.0,0.00034672,37]
[419193789,1775014266271,-500.0,0.00034672,37]
[419193790,1775014266280,-500.0,0.00034672,37]
[419193791,1775014266290,-231.82394053,0.0003468,2]
[419193792,1775014266300,-150.0,0.00034696,2]
[419193793,1775014266309,-150.0,0.000347,2]
[419193794,1775014266319,-233.18650358,0.000347,2]
[419193795,1775014266328,-151.0,0.000347,2]
[419193796,1775014266337,-200.0,0.000347,2]
[419193797,1775014266347,-10141.86,0.000347,30]
[419193798,1775014266356,-8589.43,0.000347,30]
[419193799,1775014266366,-7918.67,0.000347,30]
[419193800,1775014266375,-444.45357403,0.000347,2]
[419193801,1775014266384,-1300.0,0.000347,21]
[419193802,1775014266393,-200.0,0.000347,13]
[419193803,1775014266403,-805.6,0.000347,2]
[419193804,1775014266412,-150.0,0.000347,11]
[419193805,1775014266421,-2110.07,0.000347,2]
[419193806,1775014266430,-200.0,0.000347,2]
[419193807,1775014266440,-200.0,0.000347,2]
[419193808,1775014266449,-192.11,0.000347,31]
[419193809,1775014266459,-2000.0,0.000347,57]
[419193810,1775014266468,-2000.0,0.000347,57]
[419193811,1775014266478,-200.0,0.000347,2]
[419193812,1775014266487,-881.28293299,0.000347,14]
[419193813,1775014266496,-250.0,0.00034712,37]
[419193814,1775014266506,-150.0,0.00034712,30]
[419193815,1775014266515,-157.22,0.00034712,30]
[419193816,1775014266524,-280.73,0.00034712,30]
[419193817,1775014266534,-523.91,0.00034712,30]
[419193818,1775014266543,-1750.69,0.00034712,30]
[419193819,1775014266553,-200.0,0.0003474,2]
[419193820,1775014266562,-200.0,0.0003474,2]
[419193821,1775014266571,-200.0,0.0003474,2]
[419193822,1775014266580,-200.0,0.0003474,2]
[419193823,1775014266590,-200.0,0.0003474,2]
[419193824,1775014266599,-500.0,0.0003474,2]
[419193825,1775014266609,-469.0,0.0003474,2]
[419193826,1775014266618,-800.0,0.0003474,13]
[419193827,1775014266628,-800.0,0.0003474,13]
[419193828,1775014266637,-800.0,0.0003474,13]
[419193829,1775014266646,-501.0,0.0003474,2]
[419193830,1775014266657,-800.0,0.0003474,13]
[419193831,1775014266666,-800.0,0.0003474,13]
[419193832,1775014266675,-500.0,0.0003474,2]
[419193833,1775014266684,-369.0,0.0003474,2]
[419193834,1775014266694,-200.0,0.0003474,2]
[419193835,1775014266703,-202.0,0.0003474,2]
[419193836,1775014266712,-345.0,0.0003474,13]
[419193837,1775014266721,-677.0,0.0003474,13]
[419193838,1775014266731,-520.0,0.0003474,2]
[419193839,1775014266741,-800.0,0.0003474,13]
[419193840,1775014266750,-800.0,0.0003474,13]
[419193841,1775014266760,-800.0,0.0003474,13]
[419193842,1775014266770,-200.0,0.0003474,2]
[419193843,1775014266779,-200.0,0.0003474,2]
[419193844,1775014266789,-200.0,0.0003474,2]
[419193845,1775014266799,-200.0,0.0003474,2]
[419193846,1775014266810,-200.0,0.0003474,2]
[419193847,1775014266819,-800.0,0.0003474,13]
[419193848,1775014266828,-800.0,0.0003474,13]
[419193849,1775014266838,-800.0,0.0003474,13]
[419193850,1775014266848,-800.0,0.0003474,13]
[419193851,1775014266857,-800.0,0.0003474,13]
[419193852,1775014266867,-800.0,0.0003474,13]
[419193853,1775014266876,-800.0,0.0003474,13]
[419193854,1775014266886,-800.0,0.0003474,13]
[419193855,1775014266895,-800.0,0.0003474,13]
[419193856,1775014266904,-200.0,0.0003474,2]
[419193857,1775014266913,-200.0,0.0003474,2]
[419193858,1775014266922,-200.0,0.0003474,2]
[419193859,1775014266931,-800.0,0.0003474,13]
[419193860,1775014266940,-800.0,0.0003474,13]
[419193861,1775014266949,-200.0,0.0003474,2]
[419193862,1775014266959,-200.0,0.0003474,2]
[419193863,1775014266968,-200.0,0.0003474,2]
[419193864,1775014266977,-200.0,0.0003474,2]
[419193865,1775014266986,-200.0,0.0003474,2]
[419193866,1775014266995,-274.0,0.0003474,2]
[419193867,1775014267005,-500.0,0.0003474,2]
[419193868,1775014267014,-500.0,0.0003474,2]
[419193869,1775014267024,-500.0,0.0003474,2]
[419193870,1775014267033,-800.0,0.0003474,13]
[419193871,1775014267044,-800.0,0.0003474,13]
[419193872,1775014267053,-800.0,0.0003474,13]
[419193873,1775014267063,-800.0,0.0003474,13]
[419193874,1775014267073,-800.0,0.0003474,13]
[419193875,1775014267082,-800.0,0.0003474,13]
[419193876,1775014267092,-800.0,0.0003474,13]
[419193877,1775014267102,-800.0,0.0003474,13]
[419193878,1775014267112,-800.0,0.0003474,13]
[419193879,1775014267122,-800.0,0.0003474,13]
[419193880,1775014267133,-800.0,0.0003474,13]
[419193881,1775014267142,-800.0,0.0003474,13]
[419193882,1775014267151,-800.0,0.0003474,13]
[419193883,1775014267161,-800.0,0.0003474,13]
[419193884,1775014267171,-500.0,0.0003474,2]
[419193885,1775014267180,-500.0,0.0003474,2]
[419193886,1775014267189,-500.0,0.0003474,2]
[419193887,1775014267200,-500.0,0.0003474,2]
[419193888,1775014267210,-500.0,0.0003474,2]
[419193889,1775014267220,-500.0,0.0003474,2]
[419193890,1775014267229,-500.0,0.0003474,2]
[419193891,1775014267239,-800.0,0.0003474,13]
[419193892,1775014267249,-800.0,0.0003474,13]
[419193893,1775014267258,-800.0,0.0003474,13]
[419193894,1775014267268,-800.0,0.0003474,13]
[419193895,1775014267278,-800.0,0.0003474,13]
[419193896,1775014267288,-200.0,0.0003474,2]
[419193897,1775014267298,-200.0,0.0003474,2]
[419193898,1775014267307,-200.0,0.0003474,2]
[419193899,1775014267318,-800.0,0.0003474,13]
[419193900,1775014267327,-800.0,0.0003474,13]
[419193901,1775014267336,-800.0,0.0003474,13]
[419193902,1775014267346,-800.0,0.0003474,13]
[419193903,1775014267356,-800.0,0.0003474,13]
[419193904,1775014267366,-800.0,0.0003474,13]
[419193905,1775014267375,-800.0,0.0003474,13]
[419193906,1775014267385,-800.0,0.0003474,13]
[419193907,1775014267394,-800.0,0.0003474,13]
[419193908,1775014267404,-800.0,0.0003474,13]
[419193909,1775014267413,-800.0,0.0003474,13]
[419193910,1775014267423,-800.0,0.0003474,13]
[419193911,1775014267432,-803.0,0.0003474,13]
[419193912,1775014267442,-800.0,0.0003474,13]
[419193913,1775014267451,-200.0,0.0003474,2]
[419193914,1775014267460,-200.0,0.0003474,2]
[419193915,1775014267470,-200.0,0.0003474,2]
[419193916,1775014267479,-200.0,0.0003474,2]
[419193917,1775014267489,-500.0,0.0003474,2]
[419193918,1775014267498,-500.0,0.0003474,2]
[419193919,1775014267507,-500.0,0.0003474,2]
[419193920,1775014267517,-500.0,0.0003474,2]
[419193921,1775014267526,-500.0,0.0003474,2]
[419193922,1775014267535,-800.0,0.0003474,13]
[419193923,1775014267545,-800.0,0.0003474,13]
[419193924,1775014267554,-800.0,0.0003474,13]
[419193925,1775014267563,-800.0,0.0003474,13]
[419193926,1775014267573,-800.0,0.0003474,13]